[Event "Catalan Youth Championship 2024"]
[Site "Cambrils"]
[Date "2024.03.23"]
[Round "1.20"]
[White "Garcia Caro, Juan Alber"]
[Black "Toderas, Darwin Cristian"]
[Result "1-0"]
[ECO "A38"]
[WhiteElo "2128"]
[BlackElo "1860"]
[Annotator "RC"]
[PlyCount "103"]
[EventDate "2024.03.13"]
[EventType "swiss"]
[EventCountry "ESP"]
[SourceTitle "playchess.com"]
[Source "ChessBase"]
[SourceQuality "1"]
[TimeControl "5400+30"]

1. Nf3 {[%emt 0:00:08]} c5 {[%emt 0:00:41]} 2. g3 {[%emt 0:00:52]} Nf6 {[%emt 0:00:29]} 3. Bg2 {[%emt 0:00:14]} g6 {[%emt 0:00:38]} 4. c4 {[%emt 0:01:35]} Bg7 {[%emt 0:00:54]} 5. O-O {[%emt 0:03:23]} O-O {[%emt 0:00:46]} 6. Nc3 {[%emt 0:00:23]} d5 {[%emt 0:02:33]} 7. cxd5 {[%emt 0:08:27]} Nxd5 {[%emt 0:00:29]} 8. Nxd5 {[%emt 0:04:30]} Qxd5 {[%emt 0:00:08]} 9. d3 {[%emt 0:00:02]} Nc6 {[%emt 0:03:27]} 10. Be3 {[%emt 0:03:46]} Qd6 {[%emt 0:10:09]} 11. Ng5 {[%emt 0:28:08]} b6 {[%emt 0:20:39]} 12. Qa4 {[%emt 0:01:44]} Bd7 {[%emt 0:08:56]} 13. Qh4 {[%emt 0:05:23]} h6 {[%emt 0:01:27]} 14. Ne4 {[%emt 0:02:47]} g5 {[%emt 0:01:03]} 15. Nxd6 {[%emt 0:06:25]} gxh4 {[%emt 0:00:23]} 16. Bxc6 {[%emt 0:00:04]} Bxc6 {[%emt 0:00:35]} 17. Nf5 {[%emt 0:00:03]} Rfe8 {[%emt 0:04:38]} 18. Nxg7 {[%emt 0:09:51]} Kxg7 {[%emt 0:00:49]} 19. gxh4 {[%emt 0:00:06]} Rg8 {[%emt 0:02:20]} 20. f3 {[%emt 0:01:10]} Kf6+ {[%emt 0:00:34]} 21. Kf2 {[%emt 0:00:11]} h5 {[%emt 0:01:17]} 22. Rac1 {[%emt 0:02:56]} Rac8 {[%emt 0:04:52]} 23. a3 {[%emt 0:19:52]} Bd5 {[%emt 0:05:40]} 24. b4 {[%emt 0:00:00]} c4 {[%emt 0:08:01]} 25. Bg5+ {[%emt 0:00:00]} Kg7 {[%emt 0:03:30]} 26. Bxe7 {[%emt 0:00:00]} cxd3 {[%emt 0:02:07]} 27. exd3 {[%emt 0:00:00]} Rxc1 {[%emt 0:04:44]} 28. Rxc1 {[%emt 0:00:00]} b5 {[%emt 0:01:11]} 29. Rc5 {[%emt 0:00:09]} Be6 {[%emt 0:02:43]} 30. Rg5+ {[%emt 0:00:30]} Kh7 {[%emt 0:00:45]} 31. Rxh5+ {[%emt 0:00:04]} Kg6 {[%emt 0:00:30]} 32. Rg5+ {[%emt 0:00:04]} Kh7 {[%emt 0:00:18]} 33. Rxb5 {[%emt 0:00:06]} Bh3 {[%emt 0:00:46]} 34. Rh5+ {[%emt 0:01:38]} Kg6 {[%emt 0:00:29]} 35. Ra5 {[%emt 0:01:02]} Rc8 {[%emt 0:01:07]} 36. Rxa7 {[%emt 0:00:16]} Rc2+ {[%emt 0:00:14]} 37. Kg3 {[%emt 0:00:12]} Bf1 {[%emt 0:00:19]} 38. d4 {[%emt 0:00:55]} Kf5 {[%emt 0:00:54]} 39. Ra5+ {[%emt 0:00:02]} Ke6 {[%emt 0:00:09]} 40. Re5+ {[%emt 0:00:11]} Kd7 {[%emt 0:00:14]} 41. Bc5 {[%emt 0:00:03]} Rg2+ {[%emt 0:01:42]} 42. Kf4 {[%emt 0:00:02]} Bc4 {[%emt 0:00:24]} 43. d5 {[%emt 0:00:09]} Rxh2 {[%emt 0:01:22]} 44. Re7+ {[%emt 0:01:47]} Kd8 {[%emt 0:00:07]} 45. Kg3 {[%emt 0:01:52]} Ra2 {[%emt 0:01:02]} 46. Rxf7 {[%emt 0:00:35]} Rxa3 {[%emt 0:00:43]} 47. Rf4 {[%emt 0:00:25]} Be2 {[%emt 0:01:54]} 48. h5 {[%emt 0:00:09]} Ra1 {[%emt 0:01:05]} 49. h6 {[%emt 0:00:07]} Rh1 {[%emt 0:00:53]} 50. Rh4 {[%emt 0:00:11]} Rxh4 {[%emt 0:00:53]} 51. Kxh4 {[%emt 0:00:05]} Bd3 {[%emt 0:00:11]} 52. Kg5 {[%emt 0:00:05]} 1-0

[Event "Catalan Youth Championship 2024"]
[Site "Cambrils"]
[Date "2024.03.23"]
[Round "1.21"]
[White "Martin Barcelo, Carles"]
[Black "Gabanach Fernandez, Victor"]
[Result "1/2-1/2"]
[ECO "B31"]
[WhiteElo "2234"]
[BlackElo "1848"]
[Annotator "RC"]
[PlyCount "55"]
[EventDate "2024.03.13"]
[EventType "swiss"]
[EventCountry "ESP"]
[SourceTitle "playchess.com"]
[Source "ChessBase"]
[SourceQuality "1"]
[TimeControl "5400+30"]

1. e4 {[%emt 0:03:59]} c5 {[%emt 0:00:07]} 2. Nf3 {[%emt 0:00:26]} Nc6 {[%emt 0:00:05]} 3. Bb5 {[%emt 0:00:29]} g6 {[%emt 0:00:18]} 4. O-O {[%emt 0:01:47]} Bg7 {[%emt 0:03:16]} 5. Re1 {[%emt 0:01:51]} e5 {[%emt 0:06:38]} 6. Bxc6 {[%emt 0:01:53]} dxc6 {[%emt 0:03:53]} 7. d3 {[%emt 0:00:50]} Qc7 {[%emt 0:07:26]} 8. a4 {[%emt 0:01:00]} Nf6 {[%emt 0:06:07]} 9. a5 {[%emt 1:22:45]} O-O {[%emt 0:01:49]} 10. h3 {[%emt 0:00:30]} h6 {[%emt 0:10:05]} 11. Be3 {[%emt 0:00:00]} c4 {[%emt 0:06:33]} 12. d4 {[%emt 0:00:00]} exd4 {[%emt 0:01:10]} 13. Bxd4 {[%emt 0:00:00]} Re8 {[%emt 0:07:38]} 14. Nbd2 {[%emt 0:00:00]} c5 {[%emt 0:03:43]} 15. Bxf6 {[%emt 0:00:00]} Bxf6 {[%emt 0:00:09]} 16. e5 {[%emt 0:00:00]} Bxe5 {[%emt 0:03:37]} 17. Nxc4 {[%emt 0:00:00]} Rd8 {[%emt 0:02:15]} 18. Qe2 {[%emt 0:00:00]} Bf6 {[%emt 0:01:12]} 19. c3 {[%emt 0:00:00]} Bd7 {[%emt 0:05:45]} 20. Qe3 {[%emt 0:00:00]} Kg7 {[%emt 0:03:39]} 21. Nce5 {[%emt 0:00:00]} Re8 {[%emt 0:02:05]} 22. Qf4 {[%emt 0:00:00]} Rac8 {[%emt 0:04:26]} 23. Qh2 {[%emt 0:00:00]} Bc6 {[%emt 0:03:11]} 24. Nxc6 {[%emt 0:00:00]} Qxc6 {[%emt 0:01:36]} 25. a6 {[%emt 0:05:25]} Rxe1+ {[%emt 0:02:36]} 26. Nxe1 {[%emt 0:00:37]} bxa6 {[%emt 0:00:30]} 27. Qf4 {[%emt 0:01:20]} Qb5 {[%emt 0:00:30]} 28. Nf3 {[%emt 0:01:38]} 1/2-1/2

[Event "Catalan Youth Championship 2024"]
[Site "Cambrils"]
[Date "2024.03.23"]
[Round "1.22"]
[White "Escudero Ribo, Alexia"]
[Black "Rocamora Martorell, Ferran"]
[Result "0-1"]
[ECO "C43"]
[WhiteElo "1835"]
[BlackElo "2118"]
[Annotator "RC"]
[PlyCount "40"]
[EventDate "2024.03.13"]
[EventType "swiss"]
[EventCountry "ESP"]
[SourceTitle "playchess.com"]
[Source "ChessBase"]
[SourceQuality "1"]
[TimeControl "5400+30"]

1. e4 {[%emt 0:00:06]} e5 {[%emt 0:00:11]} 2. Nf3 {[%emt 0:00:07]} Nf6 {[%emt 0:00:09]} 3. d4 {[%emt 0:00:25]} Nxe4 {[%emt 0:00:24]} 4. Bd3 {[%emt 0:00:20]} d5 {[%emt 0:00:17]} 5. Nxe5 {[%emt 0:00:18]} Nd7 {[%emt 0:03:51]} 6. Nxd7 {[%emt 0:00:21]} Bxd7 {[%emt 0:00:25]} 7. O-O {[%emt 0:00:30]} Bd6 {[%emt 0:02:37]} 8. Nc3 {[%emt 0:02:39]} Nxc3 {[%emt 0:02:41]} 9. bxc3 {[%emt 0:00:10]} O-O {[%emt 0:06:08]} 10. Qh5 {[%emt 0:05:10]} f5 {[%emt 0:03:05]} 11. Re1 {[%emt 0:05:56]} Qf6 {[%emt 0:07:34]} 12. Bg5 {[%emt 0:08:08]} Qf7 {[%emt 0:02:43]} 13. Qh4 {[%emt 0:06:11]} h6 {[%emt 0:09:54]} 14. Bd2 {[%emt 0:20:15]} f4 {[%emt 0:15:26]} 15. f3 {[%emt 0:07:36]} b6 {[%emt 0:09:21]} 16. Re2 {[%emt 0:06:02]} Rae8 {[%emt 0:04:30]} 17. Rae1 {[%emt 0:05:02]} Rxe2 {[%emt 0:04:59]} 18. Bxe2 {[%emt 0:01:41]} c5 {[%emt 0:01:05]} 19. dxc5 {[%emt 0:03:30]} Be7 {[%emt 0:00:54]} 20. Qxf4 {[%emt 0:04:32]} Bxc5+ {[%emt 0:00:31]} 0-1

[Event "Catalan Youth Championship 2024"]
[Site "Cambrils"]
[Date "2024.03.23"]
[Round "1.23"]
[White "Serrano Batova, Vicent"]
[Black "Niubo Garcia, Adai"]
[Result "1-0"]
[ECO "A47"]
[WhiteElo "2104"]
[BlackElo "1823"]
[Annotator "RC"]
[PlyCount "55"]
[EventDate "2024.03.13"]
[EventType "swiss"]
[EventCountry "ESP"]
[SourceTitle "playchess.com"]
[Source "ChessBase"]
[SourceQuality "1"]
[TimeControl "5400+30"]

1. d4 {[%emt 1:31:00]} Nf6 {[%emt 0:00:56]} 2. Nf3 {[%emt 0:00:30]} b6 {[%emt 1:30:34]} 3. e3 {[%emt 0:00:30]} Bb7 {[%emt 0:00:00]} 4. Bd3 {[%emt 0:00:00]} e6 {[%emt 0:00:00]} 5. Nbd2 {[%emt 0:01:00]} c5 {[%emt 0:00:00]} 6. O-O {[%emt 0:00:30]} cxd4 {[%emt 0:02:00]} 7. exd4 {[%emt 0:00:30]} Be7 {[%emt 0:00:00]} 8. c3 {[%emt 0:00:30]} O-O {[%emt 0:01:00]} 9. Qe2 {[%emt 0:00:00]} d6 10. a4 {[%emt 0:01:00]} Nbd7 {[%emt 0:01:00]} 11. Re1 {[%emt 0:00:00]} Rc8 12. a5 {[%emt 0:01:00]} Nd5 {[%emt 0:01:00]} 13. Nc4 {[%emt 0:00:00]} b5 14. a6 {[%emt 0:01:00]} Ba8 {[%emt 0:01:00]} 15. Na5 {[%emt 0:00:30]} b4 {[%emt 0:00:30]} 16. c4 {[%emt 0:00:30]} N5f6 {[%emt 0:00:30]} 17. Bd2 {[%emt 0:00:30]} Qb6 {[%emt 0:00:30]} 18. Nb3 {[%emt 0:00:30]} Rfe8 {[%emt 0:00:30]} 19. Ra4 {[%emt 0:00:00]} e5 20. d5 {[%emt 0:01:00]} e4 {[%emt 0:01:00]} 21. Bxe4 {[%emt 0:00:00]} Nxe4 {[%emt 0:00:30]} 22. Qxe4 {[%emt 0:01:00]} Nf6 {[%emt 0:00:30]} 23. Qd3 {[%emt 0:00:30]} Ng4 {[%emt 0:00:30]} 24. Nbd4 {[%emt 0:00:30]} Bf6 {[%emt 0:00:30]} 25. b3 {[%emt 0:00:30]} Rxe1+ {[%emt 0:00:00]} 26. Bxe1 {[%emt 0:00:00]} Re8 {[%emt 0:01:00]} 27. Bd2 {[%emt 0:01:00]} Re5 {[%emt 0:00:00]} 28. h3 {[%emt 0:00:30]} 1-0

[Event "Catalan Youth Championship 2024"]
[Site "Cambrils"]
[Date "2024.03.23"]
[Round "1.24"]
[White "Ibarz Guasch, Maria"]
[Black "Gomez Navais, Marcal"]
[Result "0-1"]
[ECO "B26"]
[WhiteElo "1770"]
[BlackElo "2086"]
[Annotator "NA RC"]
[PlyCount "62"]
[EventDate "2024.03.13"]
[EventType "swiss"]
[EventCountry "ESP"]
[SourceTitle "playchess.com"]
[Source "ChessBase"]
[SourceQuality "1"]
[TimeControl "5400+30"]

1. e4 {[%emt 0:00:06]} c5 {[%emt 0:00:09]} 2. Nc3 {[%emt 0:00:24]} Nc6 {[%emt 0:00:06]} 3. g3 {[%emt 0:00:33]} g6 {[%emt 0:00:05]} 4. Bg2 {[%emt 0:00:18]} Bg7 {[%emt 0:00:06]} 5. d3 {[%emt 0:00:53]} d6 {[%emt 0:00:05]} 6. Be3 {[%emt 0:00:23]} Rb8 {[%emt 0:00:05]} 7. Qd2 {[%emt 0:02:22]} b5 {[%emt 0:00:09]} 8. Nge2 {[%emt 0:03:45]} b4 {[%emt 0:00:19]} 9. Nd1 {[%emt 0:00:54]} Nd4 {[%emt 0:00:17]} 10. h3 {[%emt 0:06:44]} h5 {[%emt 1:34:09]} 11. O-O {[%emt 0:05:12]} e6 {[%emt 0:00:00]} 12. f4 {[%emt 0:04:37]} Ne7 {[%emt 0:00:00]} 13. c3 {[%emt 0:12:54]} Nxe2+ {[%emt 0:00:00]} 14. Qxe2 {[%emt 0:00:17]} bxc3 {[%emt 0:00:00]} 15. bxc3 {[%emt 0:05:36]} Ba6 {[%emt 0:00:00]} 16. Qc2 {[%emt 0:04:00]} O-O {[%emt 0:00:00]} 17. Nf2 {[%emt 0:50:02]} Qa5 {[%emt 0:00:00]} 18. Bd2 {[%emt 0:00:00]} Rb7 {[%emt 0:00:00]} 19. Rab1 {[%emt 0:00:00]} Rfb8 {[%emt 0:00:00]} 20. Rxb7 {[%emt 0:00:00]} Rxb7 {[%emt 0:00:00]} 21. c4 {[%emt 0:02:00]} Qa3 {[%emt 0:00:00]} 22. Nd1 {[%emt 0:00:00]} Rb8 {[%emt 0:00:00]} 23. Bc1 {[%emt 0:00:00]} Qb4 {[%emt 0:00:00]} 24. Rf2 {[%emt 0:00:00]} Bd4 {[%emt 0:00:00]} 25. Be3 {[%emt 0:00:00]} Qe1+ {[%emt 0:00:00]} 26. Rf1 {[%emt 0:00:00]} Bxe3+ {[%emt 0:00:00]} 27. Kh2 {[%emt 0:00:00]} Qd2 {[%emt 0:00:00]} 28. Qa4 {[%emt 0:00:11]} Bb7 {[%emt 0:00:00]} 29. Qxa7 {[%emt 0:00:04]} Nc6 {[%emt 0:00:00]} 30. Qa4 {[%emt 0:02:36]} Bd4 {[%emt 0:00:00]} 31. e5 {[%emt 0:01:35]} Nb4 {[%emt 0:00:00]} 0-1

[Event "Catalan Youth Championship 2024"]
[Site "Cambrils"]
[Date "2024.03.24"]
[Round "2.5"]
[White "Puignero Garcia, Anton"]
[Black "Tallada Serret, Gerard"]
[Result "0-1"]
[ECO "B32"]
[WhiteElo "1544"]
[BlackElo "2085"]
[Annotator "NA RC"]
[PlyCount "112"]
[EventDate "2024.03.13"]
[EventType "swiss"]
[EventCountry "ESP"]
[SourceTitle "playchess.com"]
[Source "ChessBase"]
[SourceQuality "1"]
[TimeControl "5400+30"]

1. e4 {[%emt 0:00:03]} c5 {[%emt 0:00:20]} 2. Nf3 {[%emt 0:00:49]} Nc6 {[%emt 0:00:04]} 3. d4 {[%emt 0:01:37]} cxd4 {[%emt 0:00:06]} 4. Nxd4 {[%emt 0:00:55]} e5 {[%emt 0:00:06]} 5. Nb5 {[%emt 0:00:36]} d6 {[%emt 0:00:16]} 6. Bc4 {[%emt 0:06:15]} a6 {[%emt 0:00:39]} 7. N5c3 {[%emt 0:00:24]} Be7 {[%emt 0:02:49]} 8. Nd2 {[%emt 0:01:46]} Nf6 {[%emt 0:01:26]} 9. h3 {[%emt 0:00:26]} Be6 {[%emt 0:00:46]} 10. Bd5 {[%emt 0:02:54]} Nb4 {[%emt 1:28:58]} 11. Nf1 {[%emt 0:09:18]} Nc6 {[%emt 0:00:30]} 12. Ng3 {[%emt 0:05:49]} Rc8 {[%emt 0:00:00]} 13. a3 {[%emt 0:05:46]} Qb6 {[%emt 0:01:00]} 14. Rb1 {[%emt 1:00:52]} O-O {[%emt 0:00:00]} 15. O-O {[%emt 0:00:00]} Qc7 {[%emt 0:00:00]} 16. Be3 {[%emt 0:00:00]} b5 {[%emt 0:00:00]} 17. f4 {[%emt 0:00:00]} Rfd8 {[%emt 0:00:00]} 18. Qd2 {[%emt 0:02:00]} Na5 {[%emt 0:00:00]} 19. Qf2 {[%emt 0:00:00]} Nc4 {[%emt 0:00:00]} 20. f5 {[%emt 0:00:00]} Bxd5 {[%emt 0:00:00]} 21. Nxd5 {[%emt 0:00:00]} Nxd5 {[%emt 0:00:00]} 22. exd5 {[%emt 0:00:00]} Nxe3 {[%emt 0:00:00]} 23. Qxe3 {[%emt 0:00:00]} Qc5 {[%emt 0:00:00]} 24. Qxc5 {[%emt 0:00:00]} Rxc5 {[%emt 0:00:00]} 25. c3 {[%emt 0:00:00]} Rxd5 {[%emt 0:00:00]} 26. Rbd1 {[%emt 0:00:00]} Rxd1 {[%emt 0:00:00]} 27. Rxd1 {[%emt 0:00:00]} d5 {[%emt 0:00:00]} 28. Re1 {[%emt 0:00:00]} Bc5+ {[%emt 0:00:00]} 29. Kh2 {[%emt 0:00:00]} f6 {[%emt 0:00:00]} 30. Rd1 {[%emt 0:00:00]} Kf7 {[%emt 0:00:00]} 31. Ne4 {[%emt 0:00:00]} Bb6 {[%emt 0:00:00]} 32. Nf2 {[%emt 0:00:00]} Bxf2 {[%emt 0:00:00]} 33. g4 {[%emt 0:00:00]} Bb6 {[%emt 0:00:00]} 34. Kg2 {[%emt 0:00:00]} d4 {[%emt 0:00:00]} 35. Kf3 {[%emt 0:00:00]} dxc3 {[%emt 0:00:00]} 36. Rxd8 {[%emt 0:00:00]} Bxd8 {[%emt 0:00:00]} 37. bxc3 {[%emt 0:00:00]} Ba5 {[%emt 0:00:00]} 38. Ke4 {[%emt 0:00:00]} Bxc3 {[%emt 0:00:00]} 39. Kd3 {[%emt 0:00:00]} Bb2 {[%emt 0:00:00]} 40. Kc2 {[%emt 0:00:00]} Bxa3 {[%emt 0:00:00]} 41. Kb3 {[%emt 0:00:00]} Bc5 {[%emt 0:00:00]} 42. h4 {[%emt 0:12:00]} a5 {[%emt 0:00:00]} 43. g5 {[%emt 0:00:00]} fxg5 {[%emt 0:00:00]} 44. hxg5 {[%emt 0:00:00]} a4+ {[%emt 0:00:00]} 45. Ka2 {[%emt 0:00:00]} e4 {[%emt 0:00:00]} 46. g6+ {[%emt 0:00:00]} hxg6 {[%emt 0:00:00]} 47. fxg6+ {[%emt 0:00:00]} Kxg6 {[%emt 0:00:00]} 48. Kb2 {[%emt 0:00:00]} a3+ {[%emt 0:00:00]} 49. Kc2 {[%emt 0:00:00]} e3 {[%emt 0:00:00]} 50. Kd3 {[%emt 0:00:00]} a2 {[%emt 0:00:00]} 51. Ke4 {[%emt 0:00:00]} a1=Q {[%emt 0:00:00]} 52. Kd5 {[%emt 0:00:00]} Qd4+ {[%emt 0:00:00]} 53. Kc6 {[%emt 0:00:00]} e2 {[%emt 0:00:00]} 54. Kc7 {[%emt 0:00:00]} e1=Q {[%emt 0:00:00]} 55. Kc6 {[%emt 0:00:00]} Qe6+ {[%emt 0:00:00]} 56. Kxb5 {[%emt 0:00:00]} Qb4# {[%emt 0:00:00]} 0-1

[Event "Catalan Youth Championship 2024"]
[Site "Cambrils"]
[Date "2024.03.24"]
[Round "2.6"]
[White "Bru Montoya, Pau"]
[Black "Agadzhanyan, Sonya"]
[Result "1-0"]
[ECO "C06"]
[WhiteElo "1850"]
[BlackElo "1549"]
[Annotator "NA RC"]
[PlyCount "55"]
[EventDate "2024.03.13"]
[EventType "swiss"]
[EventCountry "ESP"]
[SourceTitle "playchess.com"]
[Source "ChessBase"]
[SourceQuality "1"]
[TimeControl "5400+30"]

1. e4 {[%emt 1:31:00]} e6 {[%emt 1:31:00]} 2. d4 {[%emt 0:00:30]} d5 {[%emt 0:00:30]} 3. Nd2 {[%emt 0:00:30]} Nf6 {[%emt 0:00:30]} 4. e5 {[%emt 0:00:30]} Nfd7 {[%emt 0:00:30]} 5. Bd3 {[%emt 0:00:30]} c5 {[%emt 0:00:30]} 6. c3 {[%emt 0:00:30]} Nc6 {[%emt 0:00:30]} 7. Ne2 {[%emt 0:00:30]} Qb6 {[%emt 0:00:30]} 8. Nf3 {[%emt 0:00:30]} Be7 {[%emt 0:00:30]} 9. O-O {[%emt 0:00:30]} O-O {[%emt 0:00:30]} 10. Nf4 {[%emt 0:00:30]} cxd4 {[%emt 0:00:30]} 11. cxd4 {[%emt 0:00:30]} Nb4 {[%emt 0:00:30]} 12. Bb1 {[%emt 0:00:30]} f6 {[%emt 0:00:30]} 13. a3 {[%emt 0:00:30]} Na6 {[%emt 0:00:30]} 14. Qd3 {[%emt 0:00:30]} f5 {[%emt 0:00:30]} 15. Ba2 {[%emt 0:00:30]} Rd8 {[%emt 0:00:30]} 16. Bxd5 {[%emt 0:00:30]} exd5 {[%emt 0:00:30]} 17. Nxd5 {[%emt 0:00:30]} Qe6 {[%emt 0:00:30]} 18. Nxe7+ {[%emt 0:00:30]} Qxe7 {[%emt 0:00:30]} 19. Bg5 {[%emt 0:00:30]} Qe8 {[%emt 0:00:30]} 20. Bxd8 {[%emt 0:00:30]} Qxd8 {[%emt 0:00:30]} 21. Rfe1 {[%emt 0:00:30]} Ndc5 {[%emt 0:00:30]} 22. Qd1 {[%emt 0:00:30]} Ne4 {[%emt 0:00:30]} 23. Qb3+ {[%emt 0:00:30]} Kf8 {[%emt 0:00:30]} 24. Rac1 {[%emt 0:00:30]} Bd7 {[%emt 0:00:30]} 25. Qxb7 {[%emt 0:00:30]} Rb8 {[%emt 0:00:30]} 26. Qxa6 {[%emt 0:00:30]} Rxb2 {[%emt 0:00:30]} 27. e6 {[%emt 0:00:30]} Be8 {[%emt 0:00:30]} 28. Qxa7 {[%emt 0:00:30]} 1-0

[Event "Catalan Youth Championship 2024"]
[Site "Cambrils"]
[Date "2024.03.24"]
[Round "2.7"]
[White "Fumado Garcia, Eugeni"]
[Black "Perez Vidal, Ian"]
[Result "0-1"]
[ECO "A56"]
[WhiteElo "1539"]
[BlackElo "1828"]
[Annotator "NA COMBH"]
[PlyCount "44"]
[EventDate "2024.03.13"]
[EventType "swiss"]
[EventCountry "ESP"]
[SourceTitle "playchess.com"]
[Source "ChessBase"]
[SourceQuality "1"]
[TimeControl "5400+30"]

1. d4 {[%emt 0:00:04]} Nf6 {[%emt 0:00:05]} 2. c4 {[%emt 0:00:11]} c5 {[%emt 0:00:04]} 3. d5 {[%emt 0:01:06]} d6 {[%emt 0:00:05]} 4. b3 {[%emt 0:00:50]} g6 {[%emt 0:00:08]} 5. Bb2 {[%emt 0:00:22]} Bg7 {[%emt 0:00:24]} 6. Nf3 {[%emt 0:00:41]} b5 {[%emt 0:00:16]} 7. cxb5 {[%emt 0:01:26]} a6 {[%emt 0:00:10]} 8. e3 {[%emt 0:00:13]} axb5 {[%emt 0:00:13]} 9. Bxb5+ {[%emt 0:00:14]} Bd7 {[%emt 0:00:22]} 10. Bxd7+ {[%emt 0:00:50]} Qxd7 {[%emt 0:00:37]} 11. Nbd2 {[%emt 0:00:35]} O-O {[%emt 0:00:18]} 12. O-O {[%emt 0:00:10]} Nxd5 {[%emt 0:00:44]} 13. Bxg7 {[%emt 0:00:20]} Kxg7 {[%emt 0:00:09]} 14. Nc4 {[%emt 0:01:00]} Nc3 {[%emt 0:01:59]} 15. Qd2 {[%emt 0:00:40]} Ne4 {[%emt 0:00:47]} 16. Qb2+ {[%emt 0:00:24]} Nf6 {[%emt 0:00:37]} 17. Nb6 {[%emt 0:00:24]} Qb7 {[%emt 0:00:08]} 18. Nxa8 {[%emt 0:00:32]} Qxa8 {[%emt 0:00:12]} 19. Nd2 {[%emt 0:02:19]} h5 {[%emt 0:00:38]} 20. Rfc1 {[%emt 0:02:38]} h4 {[%emt 0:00:20]} 21. Rc4 {[%emt 0:00:48]} h3 {[%emt 0:00:30]} 22. g3 {[%emt 0:00:21]} Qg2# {[%emt 0:00:03]} 0-1

[Event "Catalan Youth Championship 2024"]
[Site "Cambrils"]
[Date "2024.03.24"]
[Round "2.8"]
[White "Hijarrubia Alvarez-Cuevas, Gonzalo"]
[Black "Casanovas Prats, Ibai"]
[Result "1-0"]
[ECO "B80"]
[WhiteElo "1827"]
[BlackElo "1540"]
[Annotator "NA RC"]
[PlyCount "59"]
[EventDate "2024.03.13"]
[EventType "swiss"]
[EventCountry "ESP"]
[SourceTitle "playchess.com"]
[Source "ChessBase"]
[SourceQuality "1"]
[TimeControl "5400+30"]

1. e4 {[%emt 0:00:03]} c5 {[%emt 0:00:06]} 2. Nf3 {[%emt 0:00:05]} d6 {[%emt 0:00:13]} 3. d4 {[%emt 0:00:04]} cxd4 {[%emt 0:00:08]} 4. Nxd4 {[%emt 0:00:05]} Nf6 {[%emt 0:00:07]} 5. Nc3 {[%emt 0:00:04]} a6 {[%emt 0:00:31]} 6. f3 {[%emt 0:00:39]} e6 {[%emt 0:02:42]} 7. Be3 {[%emt 0:00:09]} Be7 {[%emt 0:00:43]} 8. Qd2 {[%emt 0:00:43]} O-O {[%emt 0:02:27]} 9. g4 {[%emt 0:02:29]} Nc6 {[%emt 0:20:12]} 10. O-O-O {[%emt 0:02:34]} Nd7 {[%emt 0:32:29]} 11. h4 {[%emt 0:22:29]} Nde5 {[%emt 0:10:36]} 12. Qf2 {[%emt 0:03:03]} Bd7 {[%emt 0:12:53]} 13. Be2 {[%emt 0:01:26]} Na5 {[%emt 0:03:06]} 14. Qg3 {[%emt 0:11:23]} Nec4 {[%emt 0:03:29]} 15. Bxc4 {[%emt 0:00:09]} Nxc4 {[%emt 0:00:25]} 16. Bf2 {[%emt 0:00:45]} Rc8 {[%emt 0:02:54]} 17. f4 {[%emt 0:01:39]} Qc7 {[%emt 0:02:00]} 18. g5 {[%emt 0:01:21]} g6 {[%emt 0:02:42]} 19. h5 {[%emt 0:00:43]} b5 {[%emt 0:00:40]} 20. hxg6 {[%emt 0:02:16]} fxg6 {[%emt 0:00:10]} 21. Qh3 {[%emt 0:05:09]} Rf7 {[%emt 0:00:30]} 22. Nxe6 {[%emt 0:01:11]} Bxe6 {[%emt 0:00:26]} 23. Qxe6 {[%emt 0:00:05]} Nxb2 {[%emt 0:01:18]} 24. Rxh7 {[%emt 0:01:26]} Bxg5 {[%emt 0:00:35]} 25. Qxg6+ {[%emt 0:00:41]} Rg7 {[%emt 0:00:52]} 26. Qxg7+ {[%emt 0:00:08]} Qxg7 {[%emt 0:00:11]} 27. Rxg7+ {[%emt 0:00:03]} Kxg7 {[%emt 0:00:07]} 28. Bd4+ {[%emt 0:00:14]} Bf6 {[%emt 0:00:21]} 29. Bxf6+ {[%emt 0:00:04]} Kxf6 {[%emt 0:00:11]} 30. Kxb2 {[%emt 0:00:04]} 1-0

[Event "Catalan Youth Championship 2024"]
[Site "Cambrils"]
[Date "2024.03.24"]
[Round "2.9"]
[White "Palahi Hervas, Dalmau"]
[Black "Uber Gracia, Hugo"]
[Result "0-1"]
[ECO "D04"]
[WhiteElo "1749"]
[BlackElo "2237"]
[Annotator "RC"]
[PlyCount "78"]
[EventDate "2024.03.13"]
[EventType "swiss"]
[EventCountry "ESP"]
[SourceTitle "playchess.com"]
[Source "ChessBase"]
[SourceQuality "1"]
[TimeControl "5400+30"]

1. d4 {[%emt 1:31:00]} d5 {[%emt 1:31:00]} 2. Nf3 {[%emt 0:00:30]} Nf6 {[%emt 0:00:30]} 3. e3 {[%emt 0:00:30]} c6 {[%emt 0:00:30]} 4. Bd3 {[%emt 0:00:30]} Bg4 {[%emt 0:00:30]} 5. h3 {[%emt 0:00:30]} Bh5 {[%emt 0:00:30]} 6. b3 {[%emt 0:00:30]} e6 {[%emt 0:00:30]} 7. Bb2 {[%emt 0:00:30]} Bd6 {[%emt 0:00:30]} 8. Nbd2 {[%emt 0:00:30]} Nbd7 {[%emt 0:00:30]} 9. Qc1 {[%emt 0:00:30]} Qb8 {[%emt 0:00:30]} 10. c4 {[%emt 0:00:30]} O-O {[%emt 0:00:30]} 11. Qc2 {[%emt 0:00:30]} Re8 {[%emt 0:00:30]} 12. cxd5 {[%emt 0:00:30]} exd5 {[%emt 0:00:30]} 13. Rc1 {[%emt 0:00:30]} a5 {[%emt 0:00:30]} 14. O-O {[%emt 0:00:30]} a4 {[%emt 0:00:30]} 15. Rb1 {[%emt 0:00:30]} a3 {[%emt 0:00:30]} 16. Ba1 {[%emt 0:00:30]} Qd8 {[%emt 0:00:30]} 17. b4 {[%emt 0:00:30]} Qe7 {[%emt 0:00:30]} 18. b5 {[%emt 0:00:30]} Rec8 {[%emt 0:00:30]} 19. bxc6 {[%emt 0:00:30]} bxc6 {[%emt 0:00:30]} 20. Rb7 {[%emt 0:00:30]} Qe8 {[%emt 0:00:30]} 21. Rc1 {[%emt 0:00:30]} c5 {[%emt 0:00:30]} 22. Bb5 {[%emt 0:00:30]} cxd4 {[%emt 0:00:30]} 23. Qd1 {[%emt 0:00:30]} Rxc1 {[%emt 0:00:30]} 24. Qxc1 {[%emt 0:00:30]} dxe3 {[%emt 0:00:30]} 25. Nb3 {[%emt 0:00:30]} exf2+ {[%emt 0:00:30]} 26. Kxf2 {[%emt 0:00:30]} Qd8 {[%emt 0:00:30]} 27. Bxd7 {[%emt 0:00:30]} Nxd7 {[%emt 0:00:30]} 28. Qc6 {[%emt 0:00:30]} Nf8 {[%emt 0:00:30]} 29. g4 {[%emt 0:00:30]} Rc8 {[%emt 0:00:30]} 30. Qb5 {[%emt 0:00:30]} Bg6 {[%emt 0:00:30]} 31. Bd4 {[%emt 0:00:30]} Be4 {[%emt 0:00:30]} 32. Nbd2 {[%emt 0:00:30]} Ne6 {[%emt 0:00:30]} 33. Qd7 {[%emt 0:00:30]} Qxd7 {[%emt 0:00:30]} 34. Rxd7 {[%emt 0:00:30]} Nxd4 {[%emt 0:00:30]} 35. Nxe4 {[%emt 0:00:30]} dxe4 {[%emt 0:00:30]} 36. Nxd4 {[%emt 0:00:30]} Bc5 37. Ke3 {[%emt 0:00:30]} g6 {[%emt 0:01:00]} 38. Kxe4 {[%emt 0:00:30]} Bxd4 {[%emt 0:00:30]} 39. Kxd4 {[%emt 0:00:30]} Rc2 {[%emt 0:00:30]} 0-1